fUST/lending_fUST_20240903
["ID","MTS","AMOUNT","RATE_DAILY","PERIOD"]
[337003251,1725300641114,-1347.19,0.00186301,120]
[337003253,1725300641123,-1685.62,0.00186301,120]
[337003255,1725300641135,-624.99,0.00186301,120]
[337003257,1725300641146,-183.0,0.00187301,120]
[337003258,1725300641155,-476.89457471,0.00188822,120]
[337003260,1725300641165,-150.0,0.00189,120]
[337003262,1725300641176,-167.389999,0.00189,120]
[337003264,1725300641185,-200.08223504,0.0018962,120]
[337003266,1725300641194,-652.63794854,0.00189999,120]
[337003268,1725300641208,-6418.84693407,0.00189999,120]
[337003269,1725300641218,-409.02707193,0.0019,120]
[337003271,1725300641227,-500.0,0.0019,120]
[337003273,1725300641236,-500.0,0.0019,120]
[337003275,1725300641246,-150.0,0.0019,120]
[337003276,1725300641255,-200.0,0.00191,120]
[337003278,1725300641264,-5000.0,0.0019178,120]
[337003280,1725300641274,-5123.4,0.0019299,3]
[337003282,1725300641284,-30000.0,0.00193,120]
[337003284,1725300641294,-174.0,0.00193531,120]
[337003286,1725300641303,-1252.18,0.0019452,120]
[337003288,1725300641313,-1347.19,0.0019452,120]
[337003290,1725300641323,-1685.62,0.0019452,120]
[337003291,1725300641332,-624.99,0.0019452,120]
[337003293,1725300641342,-17688.54297385,0.00196925,120]
[337003445,1725300642959,-2681.83471103,0.00098336,60]
[337003447,1725300642969,-34020.62228221,0.00196925,120]
[337003454,1725300643023,-10.6377298,0.00196925,120]
[337003882,1725300647530,-507.40147131,0.00196925,120]
[337006474,1725301056660,3295.17152234,0.000192,120]
[337006563,1725301832867,-900.0,0.00025469,3]
[337006564,1725301832894,-523.56882619,0.00026,2]
[337006565,1725301832919,-43790.99903941,0.00027,3]
[337006566,1725301832943,-165.41208909,0.0003,2]
[337006567,1725301832968,-3000.81708515,0.00033,2]
[337006568,1725301832996,-157.870183,0.00039452,2]
[337006569,1725301833024,-158.377274,0.00039452,2]
[337006570,1725301833224,-153.0,0.00041461,2]
[337006571,1725301833254,-153.0,0.00041461,2]
[337006572,1725301833282,-153.0,0.00041461,2]
[337006573,1725301833308,-306.0,0.00041598,2]
[337006574,1725301833336,-20000.0,0.00042,120]
[337006575,1725301833363,-452.87002438,0.000539,30]
[337006576,1725301833388,-522.0,0.00063112,120]
[337006577,1725301833415,-150.0,0.00063112,120]
[337006578,1725301833441,-183.0,0.00065753,120]
[337006579,1725301833467,-180.4,0.00080958,120]
[337006580,1725301833493,-833.29,0.00092999,120]
[337006581,1725301833519,-500.0,0.00092999,120]
[337006582,1725301833547,-500.0,0.00092999,120]
[337006583,1725301833575,-500.0,0.00092999,120]
[337006584,1725301833601,-30000.0,0.00093,120]
[337006585,1725301833627,-2168.81884596,0.000984,28]
[337006586,1725301833654,-1999.99999901,0.000985,120]
[337006587,1725301833678,-3233.605,0.00099262,120]
[337006588,1725301833708,-2817.37556544,0.0009999,61]
[337006589,1725301833735,-291644.272389,0.0009999,17]
[337006590,1725301833761,-625.0,0.00099999,120]
[337006591,1725301833787,-833.29,0.00099999,120]
[337006592,1725301833813,-500.0,0.00099999,120]
[337006593,1725301833840,-500.0,0.00099999,2]
[337006594,1725301833865,-500.0,0.001,120]
[337006595,1725301833890,-49500.0,0.001,120]
[337006596,1725301833942,4269.5,0.0009998,3]
[337006624,1725301843176,-500.0,0.00101218,120]
[337006625,1725301843186,-500.0,0.00101218,120]
[337006626,1725301843196,-500.0,0.00101218,120]
[337006627,1725301843205,-767.59005858,0.00104009,120]
[337006628,1725301843215,-625.0,0.00108218,120]
[337006629,1725301843224,-500.0,0.00108218,120]
[337006631,1725301843234,-500.0,0.00109437,120]
[337006632,1725301843243,-500.0,0.00109437,120]
[337006633,1725301843253,-500.0,0.00109437,120]
[337006634,1725301843264,-999.500001,0.0011,120]
[337006635,1725301843275,-833.29,0.00112327,120]
[337006636,1725301843285,-625.0,0.00116437,120]
[337006637,1725301843294,-500.0,0.00116437,120]
[337006638,1725301843304,-500.0,0.00117656,120]
[337006639,1725301843314,-500.0,0.00117656,120]
[337006640,1725301843323,-500.0,0.00117656,120]
[337006641,1725301843336,-625.0,0.00124656,120]
[337006642,1725301843345,-500.0,0.00124656,120]
[337006643,1725301843355,-500.0,0.00125876,120]
[337006644,1725301843365,-500.0,0.00125876,120]
[337006645,1725301843374,-500.0,0.00125876,120]
[337006646,1725301843384,-767.59005857,0.00127338,120]
[337006647,1725301843393,-625.0,0.00132876,120]
[337006648,1725301843403,-500.0,0.00132876,120]
[337006649,1725301843413,-500.0,0.00134095,120]
[337006650,1725301843422,-500.0,0.00134095,120]
[337006651,1725301843431,-500.0,0.00134095,120]
[337006652,1725301843441,-625.0,0.00141095,120]
[337006653,1725301843450,-500.0,0.00141095,120]
[337006654,1725301843459,-500.0,0.00142314,120]
[337006655,1725301843470,-500.0,0.00142314,120]
[337006656,1725301843480,-500.0,0.00142314,120]
[337006657,1725301843489,-625.0,0.00149314,120]
[337006658,1725301843499,-500.0,0.00149314,120]
[337006659,1725301843508,-1000.0,0.00149999,120]
[337006660,1725301843518,-1000.0,0.0015,120]
[337006661,1725301843527,-500.0,0.00150533,120]
[337006662,1725301843537,-500.0,0.00150533,120]
[337006663,1725301843548,-500.0,0.00150533,120]
[337006664,1725301843561,-767.59005857,0.00150667,120]
[337006665,1725301843571,-625.0,0.00157533,120]
[337006666,1725301843581,-500.0,0.00157533,120]
[337006667,1725301843591,-500.0,0.00158752,120]
[337006668,1725301843601,-500.0,0.00158752,120]
[337006669,1725301843611,-500.0,0.00158752,120]
[337006670,1725301843620,-625.0,0.00165752,120]
[337006671,1725301843630,-500.0,0.00165752,120]
[337006672,1725301843640,-500.0,0.00166972,120]
[337006673,1725301843650,-500.0,0.00166972,120]
[337006674,1725301843660,-522.28978802,0.00166972,120]
[337006675,1725301843670,-720.68279738,0.00167898,120]
[337006676,1725301843681,-1248.23191533,0.00169715,2]
[337006677,1725301843690,-1000.0,0.00169716,120]
[337006678,1725301843699,-5075.69231579,0.00169794,120]
[337006679,1725301845078,38124.53367937,0.00063112,2]
[337006708,1725302782906,302.36509981,0.0002,2]
[337006709,1725302782960,302.36509981,0.000202,2]
[337006711,1725302907215,302.33493269,0.0002,2]
[337006712,1725302907249,302.33493269,0.000202,2]
[337006714,1725302955156,-203.82642747,0.000204,2]
[337006716,1725303018682,-98.53867234,0.000204,2]
[337006717,1725303018708,-302.33493269,0.000204,2]
[337006718,1725303018748,-302.36509981,0.000206,2]
[337006719,1725303018774,-302.33493269,0.000206,2]
[337006720,1725303018957,-302.36509981,0.000208,2]
[337006721,1725303018986,-302.33493269,0.000208,2]
[337006722,1725303019014,-453.54764972,0.00021,4]
[337006723,1725303019042,-402.33493271,0.00021,4]
[337006724,1725303019068,-453.54764972,0.000212,4]
[337006725,1725303019094,-162.91391252,0.000214,4]
[337006726,1725303019121,-160.9792,0.00023228,2]
[337006727,1725303019148,-160.9792,0.00023363,2]
[337006728,1725303019174,-160.9792,0.00023497,2]
[337006729,1725303019200,-160.9792,0.00023632,2]
[337006730,1725303019228,-160.9792,0.00023766,2]
[337006731,1725303019254,-160.9792,0.00023901,2]
[337006732,1725303019280,-160.9792,0.00024035,2]
[337006733,1725303019306,-160.9792,0.0002417,2]
[337006734,1725303019333,-160.9792,0.00024304,2]
[337006735,1725303019359,-160.9792,0.00024439,2]
[337006736,1725303019385,-300.0,0.00026735,2]
[337006737,1725303019418,-24890.0,0.00026736,2]
[337006738,1725303019442,-180.0,0.00029408,2]
[337006739,1725303019466,-1000.19354705,0.00034339,2]
[337006740,1725303019494,-1898.89,0.0003442,3]
[337006741,1725303019518,-3621.05,0.0003442,3]
[337006742,1725303019543,-3017.54,0.0003442,3]
[337006743,1725303019571,-1408.68778272,0.0003443,11]
[337006744,1725303019599,-277062.058769,0.0003443,4]
[337006745,1725303019624,-265.35251781,0.00034439,7]
[337006746,1725303019649,-289.58765765,0.00034439,7]
[337006747,1725303019674,-307.18300307,0.00034439,7]
[337006748,1725303019700,-110371.7791074,0.0003444,8]
[337006749,1725303019728,-2223.30181075,0.00037344,2]
[337006750,1725303019754,-157.870183,0.00039452,2]
[337006751,1725303019778,-266.6170322,0.00041918,120]
[337006752,1725303019803,-20000.0,0.00042,120]
[337006753,1725303019827,-153.0,0.00042055,2]
[337006754,1725303019852,-207.8243323,0.00042055,2]
[337006755,1725303019880,-1248.23191533,0.00042789,2]
[337006756,1725303019908,-4897.25280172,0.00042868,61]
[337006757,1725303019939,-277062.058769,0.00042869,5]
[337006758,1725303019964,-260.05,0.000429,14]
[337006759,1725303019992,-161.08,0.000429,14]
[337006760,1725303020019,-1000.19354704,0.00053811,2]
[337006761,1725303020047,-500.0,0.00054794,2]
[337006762,1725303020075,-500.0,0.00054794,120]
[337006763,1725303020100,-600.0,0.00054794,120]
[337006764,1725303020127,-500.0,0.00054794,120]
[337006765,1725303020159,-500.0,0.00054794,120]
[337006766,1725303020186,-500.0,0.00054794,120]
[337006767,1725303020211,-500.0,0.00054794,120]
[337006768,1725303020241,-500.0,0.00054794,120]
[337006769,1725303020268,-500.0,0.00054794,120]
[337006770,1725303020293,-500.0,0.00054794,120]
[337006771,1725303020319,-490.0,0.00054794,120]
[337006772,1725303020348,-500.0,0.00054794,120]
[337006773,1725303020375,-963.0,0.00054794,120]
[337006774,1725303020400,-179.72202861,0.00063013,2]
[337006775,1725303020425,-500.0,0.00063013,120]
[337006776,1725303020450,-600.0,0.00063013,120]
[337006777,1725303020475,-500.0,0.00063013,120]
[337006778,1725303020500,-457.67490652,0.00063013,120]
[337006779,1725303020527,-500.0,0.00063013,120]
[337006780,1725303020552,-500.0,0.00063013,120]
[337006781,1725303020580,-617.27,0.00063013,120]
[337006782,1725303020605,-500.0,0.00063013,120]
[337006783,1725303020631,-265.44198989,0.00063013,120]
[337006784,1725303020659,-500.0,0.00063013,120]
[337006785,1725303020684,-963.0,0.00063013,120]
[337006786,1725303020709,-500.0,0.00071232,120]
[337006787,1725303020738,-600.0,0.00071232,120]
[337006788,1725303020765,-500.0,0.00071232,120]
[337006789,1725303020790,-500.0,0.00071232,120]
[337006790,1725303020817,-500.0,0.00071232,120]
[337006791,1725303020843,-500.0,0.00071232,120]
[337006792,1725303020869,-500.0,0.00071232,120]
[337006793,1725303020895,-963.0,0.00071232,120]
[337006794,1725303020921,-1000.19354704,0.00073284,2]
[337006795,1725303020957,-23836.467,0.00075083,2]
[337006796,1725303020992,-1399.78,0.00076,120]
[337006797,1725303021024,-763.85,0.00079451,120]
[337006798,1725303021056,-500.0,0.00079452,120]
[337006799,1725303021086,-600.0,0.00079452,120]
[337006800,1725303021116,-500.0,0.00079452,120]
[337006801,1725303021145,-500.0,0.00079452,120]
[337006802,1725303021172,-500.0,0.00079452,120]
[337006803,1725303021199,-500.0,0.00079452,120]
[337006804,1725303021229,-500.0,0.00079452,120]
[337006805,1725303021268,-963.0,0.00079452,120]
[337006806,1725303021308,-1000.001999,0.0008,120]
[337006807,1725303021337,-500.0,0.00087671,120]
[337006808,1725303021367,-600.0,0.00087671,120]
[337006809,1725303021398,-500.0,0.00087671,120]
[337006810,1725303021427,-500.0,0.00087671,120]
[337006811,1725303021457,-500.0,0.00087671,120]
[337006812,1725303021487,-500.0,0.00087671,120]
[337006813,1725303021515,-500.0,0.00087671,120]
[337006814,1725303021544,-963.0,0.00087671,120]
[337006815,1725303021571,-1000.19354704,0.00092756,2]
[337006816,1725303021602,-1000.0,0.0009289,120]
[337006817,1725303021630,-5000.0,0.00092999,120]
[337006818,1725303021660,-239.07461701,0.00092999,31]
[337006819,1725303021690,-500.0,0.00092999,120]
[337006820,1725303021720,-233.90782359,0.00092999,120]
[337006821,1725303021754,-500.0,0.00092999,120]
[337006822,1725303021782,-500.0,0.00092999,120]
[337006823,1725303021814,-878.7329044,0.00092999,120]
[337006824,1725303021842,-894.4245634,0.00092999,120]
[337006825,1725303021872,-894.4245634,0.00092999,120]
[337006826,1725303021902,-894.4245634,0.00092999,120]
[337006827,1725303021933,-878.35557595,0.00092999,120]
[337006828,1725303021962,-878.35557595,0.00092999,120]
[337006829,1725303022000,-906.46295438,0.00092999,120]
[337006830,1725303022027,-911.23055325,0.00092999,120]
[337006831,1725303022056,-905.11986936,0.00092999,120]
[337006832,1725303022086,-898.43432487,0.00092999,120]
[337006833,1725303022113,-30000.0,0.00093,120]
[337006834,1725303022139,-3570.68,0.00093,60]
[337006835,1725303022168,-500.0,0.0009589,120]
[337006836,1725303022195,-600.0,0.0009589,120]
[337006837,1725303022223,-168.131664,0.0009589,120]
[337006838,1725303022253,-500.0,0.0009589,120]
[337006839,1725303022281,-500.0,0.0009589,120]
[337006840,1725303022309,-500.0,0.0009589,120]
[337006841,1725303022340,-500.0,0.0009589,120]
[337006842,1725303022371,-963.0,0.0009589,120]
[337006843,1725303022411,500.0,0.00054794,120]
[337006871,1725303032265,-790.57982691,0.00092999,120]
[337006873,1725303032276,-500.0,0.00104109,120]
[337006875,1725303032287,-600.0,0.00104109,120]
[337006877,1725303032298,-500.0,0.00104109,120]
[337006878,1725303032309,-500.0,0.00104109,120]
[337006879,1725303032320,-500.0,0.00104109,120]
[337006881,1725303032331,-963.0,0.00104109,120]
[337006883,1725303032342,-4300.0,0.0011,120]
[337006884,1725303032354,-1000.19354704,0.00112228,120]
[337006885,1725303032364,-500.0,0.00112328,120]
[337006886,1725303032374,-600.0,0.00112328,120]
[337006887,1725303032384,-500.0,0.00112328,120]
[337006888,1725303032394,-500.0,0.00112328,120]
[337006889,1725303032404,-500.0,0.00112328,120]
[337006890,1725303032414,-963.0,0.00112328,120]
[337006891,1725303032425,-999.500001,0.0012,120]
[337006892,1725303032437,-5000.0,0.00120396,120]
[337006893,1725303032449,-375.14,0.00120547,120]
[337006894,1725303032460,-600.0,0.00120547,120]
[337006895,1725303032470,-522.28978802,0.00120547,120]
[337006896,1725303032482,-500.0,0.00120547,120]
[337006897,1725303032493,-500.0,0.00120547,120]
[337006898,1725303032505,-963.0,0.00120547,120]
[337006899,1725303032516,-763.85,0.00128765,120]
[337006900,1725303032527,-600.0,0.00128767,120]
[337006901,1725303032538,-500.0,0.00128767,120]
[337006902,1725303032550,-500.0,0.00128767,120]
[337006904,1725303032562,-963.0,0.00128767,120]
[337006905,1725303032573,-4300.0,0.00135,120]
[337006906,1725303032584,-600.0,0.00136986,120]
[337006907,1725303032596,-1715.56,0.00136986,120]
[337006908,1725303032607,-1715.56,0.00136986,120]
[337006909,1725303032619,-1715.56,0.00136986,120]
[337006910,1725303032642,-1715.56,0.00136986,120]
[337006911,1725303032656,-1715.56,0.00136986,120]
[337006912,1725303032666,-892.92334475,0.00136986,120]
[337006945,1725303043335,-822.63665525,0.00136986,120]
[337006946,1725303043345,-1715.56,0.00136986,120]
[337006947,1725303043355,-1715.56,0.00136986,120]
[337006948,1725303043365,-1715.56,0.00136986,120]
[337006949,1725303043375,-1715.56,0.00136986,120]
[337006950,1725303043384,-1715.56,0.00136986,120]
[337006951,1725303043394,-500.0,0.00136986,120]
[337006952,1725303043404,-500.0,0.00136986,120]
[337006953,1725303043415,-963.0,0.00136986,120]
[337006954,1725303043426,-600.0,0.00145205,120]
[337006955,1725303043437,-1715.56,0.00145205,120]
[337006956,1725303043447,-500.0,0.00145205,120]
[337006957,1725303043456,-500.0,0.00145205,120]
[337006958,1725303043465,-963.0,0.00145205,120]
[337006960,1725303043475,-166.420704,0.00145404,120]
[337006961,1725303043485,-160.351755,0.00145404,120]
[337006962,1725303043496,-166.420704,0.00145404,120]
[337006963,1725303043505,-5000.0,0.00147793,120]
[337006964,1725303043515,-160.351755,0.00147828,120]
[337006965,1725303043526,-1000.0,0.00149999,120]
[337006966,1725303043536,-160.351755,0.00150251,120]
[337006967,1725303043545,-160.351755,0.00152674,120]
[337006968,1725303043555,-166.420704,0.00152674,120]
[337006969,1725303043565,-161.08,0.00153,60]
[337006970,1725303043575,-600.0,0.00153424,120]
[337006971,1725303043584,-1715.56,0.00153424,120]
[337006972,1725303043594,-500.0,0.00153424,120]
[337006973,1725303043603,-500.0,0.00153424,120]
[337006974,1725303043612,-963.0,0.00153424,120]
[337006975,1725303043622,-763.85,0.00159989,120]
[337006976,1725303043632,-763.85,0.00159989,120]
[337006977,1725303043642,-763.85,0.00159989,120]
[337006978,1725303043651,-763.85,0.00159989,120]
[337006979,1725303043661,-763.85,0.00159989,120]
[337006980,1725303043670,-763.85,0.00159989,120]
[337006981,1725303043680,-763.85,0.00159989,120]
[337006982,1725303043690,-3633.20120599,0.0016,120]
[337006990,1725303046302,-830.37913836,0.0016,120]
[337006991,1725303046311,-600.0,0.00161643,120]
[337006992,1725303046321,-1153.31086164,0.00161643,120]
[337007038,1725304232421,-162.820778,0.00039452,2]
[337007040,1725304232432,-162.42318,0.00039452,2]
[337007042,1725304232441,-228.590767,0.00041918,120]
[337007044,1725304232451,-400.0,0.00041999,30]
[337007047,1725304232460,-252.9049346,0.00042,120]
[337007128,1725304240750,-8906.07936215,0.00042,120]
[337007132,1725304243655,-10841.01570325,0.00042,120]
[337007133,1725304243667,-157.409004,0.00050736,2]
[337007134,1725304243677,-210.52137552,0.000546,2]
[337007135,1725304243687,-210.52137552,0.000546,2]
[337007136,1725304243696,-500.0,0.00054794,120]
[337007138,1725304243706,-500.0,0.00063013,120]
[337007139,1725304243717,-500.0,0.00071232,120]
[337007140,1725304243726,-500.0,0.00079452,120]
[337007141,1725304243736,-1893.95784864,0.00088244,2]
[337007142,1725304243747,-2000.0,0.00089269,120]
[337007143,1725304243757,-600.0,0.00092889,120]
[337007144,1725304243767,-700.19,0.00092889,120]
[337007145,1725304243776,-700.19,0.00092889,120]
[337007146,1725304243789,-500.0,0.00092889,120]
[337007147,1725304243799,-500.0,0.00092999,120]
[337007148,1725304243809,-561.75,0.00092999,120]
[337007149,1725304243819,-15326.90168631,0.00093,120]
[337007160,1725304246522,-597.17,0.00093,120]
[337007170,1725305322192,5790.599935,0.00014,2]
[337007171,1725305322232,9376.14587576,0.00014,2]
[337007191,1725305432570,-400.0,0.00041999,30]
[337007193,1725305432581,-20000.0,0.00042,120]
[337007195,1725305432591,-201.2847414,0.00043508,2]
[337007197,1725305432601,-513.8417149,0.0004358,2]
[337007199,1725305432611,-157.409004,0.00046979,2]
[337007201,1725305432620,-305.4916488,0.00047108,2]
[337007203,1725305432630,-210.52137552,0.000546,2]
[337007205,1725305432639,-210.52137552,0.000546,2]
[337007207,1725305432649,-1.26271086,0.00069999,120]
[337007249,1725305438749,-498.73728914,0.00069999,120]
[337007250,1725305438760,-561.75,0.00069999,120]
[337007251,1725305438770,-2448.62640086,0.0007,61]
[337007252,1725305438780,-22333.46674308,0.0007,120]
[337007253,1725305438792,-913.84171493,0.0007,120]
[337007264,1725305443674,-26752.69154199,0.0007,120]
[337007265,1725305443684,-2115.01488413,0.00074079,2]
[337007266,1725305443694,-500.0,0.00078218,120]
[337007267,1725305443704,-561.75,0.00078218,120]
[337007268,1725305443714,-3000.0,0.00079,30]
[337007269,1725305443726,-1000.0,0.0007989,120]
[337007270,1725305443736,-388.4710292,0.00079899,2]
[337007271,1725305443745,-1123.40872377,0.000799,2]
[337007272,1725305443755,-761.12081415,0.00079969,3]
[337007322,1725306637828,-2523.00000001,0.00042,120]
[337007344,1725306642859,-17476.99999999,0.00042,120]
[337007345,1725306642869,-500.0,0.00069999,120]
[337007346,1725306642878,-500.0,0.00069999,120]
[337007347,1725306642889,-1000.0,0.00069999,120]
[337007348,1725306642899,-500.0,0.00078218,120]
[337007349,1725306642908,-500.0,0.00078218,120]
[337007351,1725306642918,-1000.0,0.00078218,120]
[337007353,1725306642928,-2134.48689339,0.00078317,2]
[337007355,1725306642938,-1945.38908445,0.000789,28]
[337007356,1725306642948,-500.0,0.00078999,120]
[337007357,1725306642958,-538.34,0.00078999,120]
[337007358,1725306642969,-9607.24101541,0.00079,120]
[337007386,1725307613161,-150.0,0.0004,10]
[337007387,1725307613184,-46.76682695,0.00041918,120]
[337007401,1725307831783,-878.25,0.00031849,2]
[337007404,1725307831794,-2239.87182462,0.00033225,2]
[337007406,1725307831803,-203.82642747,0.00041416,44]
[337007408,1725307831813,-190.06061894,0.00041416,44]
[337007410,1725307831823,-164.68522605,0.00041918,120]
[337007411,1725307831832,-400.0,0.00041999,30]
[337007412,1725307831842,-400.0,0.00041999,5]
[337007413,1725307831851,-1926.23040922,0.00042,120]
[337007426,1725307838159,-799.73071399,0.00042,120]
[337007738,1725307843047,-17274.03887679,0.00042,120]
[337007741,1725307843058,-181.551967,0.00048868,2]
[337007745,1725307843068,-500.0,0.0005,30]
[337007747,1725307843078,-9600.0,0.0005,120]
[337007749,1725307843088,-181.551967,0.00050141,2]
[337007751,1725307843097,-181.551967,0.00051415,2]
[337007753,1725307843107,-500.0,0.0006,90]
[337007755,1725307843117,-309.0,0.0006,120]
[337007757,1725307843126,-287.40268427,0.0006999,120]
[337007759,1725307843136,-1000.0,0.0007,90]
[337007761,1725307843146,-1224.31320043,0.00072665,61]
[337007762,1725307843158,-2000.0,0.00072665,120]
[337007765,1725307843169,-2000.0,0.000745,120]
[337007767,1725307843179,-963.04633075,0.000759,28]
[337008486,1725308884418,14461.65687343,0.00018447,2]
[337008487,1725308898549,396.84385311,0.000123,2]
[337008492,1725308921590,12904.26793549,0.00014,2]
[337008493,1725308921971,410.42681097,0.0001,2]
[337008516,1725309032056,-438.77916643,0.00042,120]
[337008517,1725309032069,-364.33219225,0.00042,120]
[337008554,1725309038270,-3783.50000002,0.00042,120]
[337008556,1725309038284,-1855.57374104,0.00042,120]
[337008635,1725309043219,-13557.81490026,0.00042,120]
[337008636,1725309043232,-2648.2818424,0.00045961,2]
[337008637,1725309043241,-181.551967,0.00047923,2]
[337008638,1725309043250,-181.551967,0.00049171,2]
[337008639,1725309043260,-181.551967,0.0005042,2]
[337008640,1725309043270,-421.04275104,0.000509,2]
[337008641,1725309043279,-174.0,0.00051,120]
[337008642,1725309043290,-162.0,0.00051,120]
[337008643,1725309043300,-150.0,0.0005167,2]
[337008644,1725309043311,-174.0,0.00053291,120]
[337008645,1725309043320,-309.0,0.0006,120]
[337008646,1725309043329,-175.0,0.00067147,120]
[337008649,1725309043340,-612.62272175,0.0006848,120]
[337008698,1725309046206,-112783.3754294,0.0006848,120]
[337008721,1725309196325,309.01234,6e-05,120]
[337008747,1725310232196,-486.24441224,0.00023839,2]
[337008748,1725310232209,-181.551967,0.00032802,2]
[337008749,1725310232219,-181.551967,0.00033656,2]
[337008750,1725310232230,-181.551967,0.00034511,2]
[337008751,1725310232243,-2673.52749925,0.00035033,2]
[337008762,1725310238535,-22226.47250075,0.00035033,2]
[337008763,1725310238544,-231.291275,0.00041918,120]
[337008764,1725310238553,-20000.0,0.00042,120]
[337008765,1725310238562,-7429.93198702,0.0005,120]
[337008769,1725310240345,-2170.06801298,0.0005,120]
[337008770,1725310240354,-174.0,0.00051,120]
[337008771,1725310240363,-162.0,0.00051,120]
[337008772,1725310240373,-4327.2006479,0.00051885,2]
[337008773,1725310240382,-150.0,0.00051983,2]
[337008774,1725310240391,-174.0,0.00053291,120]
[337008775,1725310240401,-3785.06,0.00054774,3]
[337008776,1725310240410,-3154.22,0.00054774,3]
[337008777,1725310240419,-2628.52,0.00054774,3]
[337008778,1725310240429,-6808.61439,0.00054783,30]
[337008779,1725310240440,-500.0,0.00054783,120]
[337008780,1725310240449,-500.0,0.00054783,120]
[337008781,1725310240458,-500.0,0.00054783,120]
[337008782,1725310240469,-452.3020707,0.00054783,120]
[337008783,1725310240478,-450.0,0.00054783,120]
[337008784,1725310240487,-500.0,0.00054783,120]
[337008785,1725310240497,-167.3522319,0.00054783,31]
[337008786,1725310240507,-500.0,0.00054783,120]
[337008787,1725310240518,-512.38893353,0.00054783,120]
[337008788,1725310240528,-500.0,0.00054783,120]
[337008789,1725310240538,-1413.37521309,0.00054784,61]
[337008790,1725310240549,-39570.17536888,0.00054784,61]
[337008791,1725310240566,-13626.91501794,0.00054784,61]
[337008816,1725310246308,-2190.43,0.00054774,3]
[337008817,1725310246318,-5361.34219375,0.00054784,61]
[337008818,1725310246328,-42446.8081388,0.00054784,6]
[337008821,1725310592424,364.85,0.00020102,2]
[337008824,1725311192156,-196.76682695,0.0002408,2]
[337008857,1725311432401,-213.24011472,0.0002408,2]
[337008859,1725311432410,-5690.71148711,0.00034513,2]
[337008862,1725311432423,-305.25944529,0.00034513,2]
[337008876,1725311438578,-303.1836313,0.00034513,2]
[337008877,1725311438592,-876.9399101,0.00034513,2]
[337008912,1725311440615,-3292.89520325,0.00034513,2]
[337008914,1725311440631,-2676.18215315,0.00034513,2]
[337008916,1725311440641,-1311.12784655,0.00042,120]
[337008920,1725311440672,-1634.36539991,0.00042,120]
[337008922,1725311440686,-17054.50675354,0.00042,120]
[337008924,1725311440697,-2194.37789828,0.000499,28]
[337008925,1725311440707,-10000.0,0.0005,55]
[337008927,1725311440717,-421.04275104,0.000519,2]
[337008929,1725311440727,-162.0,0.00052,120]
[337008931,1725311440738,-150.0,0.00052237,2]
[337008933,1725311440747,-4327.2006479,0.00052324,2]
[337008934,1725311440757,-174.0,0.00053,120]
[337008936,1725311440767,-999.873037,0.00054,120]
[337008938,1725311440778,-3511.8,0.000546,120]
[337008940,1725311440788,-3419.99,0.00054653,3]
[337008942,1725311440797,-2849.99,0.00054653,3]
[337008943,1725311440807,-2374.99,0.00054653,3]
[337008944,1725311440816,-6808.61439,0.00054662,30]
[337008945,1725311440825,-450.0,0.00054662,120]
[337008946,1725311440835,-500.0,0.00054662,120]
[337008947,1725311440844,-167.3522319,0.00054662,31]